bitfinex/quotes_SOLUSD_20250107
["timestamp","ask_amount","ask_price","bid_price","bid_amount"]
[1736259133105,0.12549,213.7,213.65,9.29503173]
[1736259133688,0.12549,213.7,213.64,9.29503173]
[1736259134382,0.12549,213.7,213.61,1.5827]
[1736259134700,0.12549,213.68,213.61,9.29503173]
[1736259134876,0.12549,213.68,213.58,23.776884]
[1736259135079,0.12549,213.68,213.61,9.29503173]
[1736259135280,0.12549,213.68,213.58,23.776884]
[1736259135477,0.12549,213.68,213.57,0.70200073]
[1736259135780,0.12549,213.68,213.59,9.29503173]
[1736259136321,0.12549,213.68,213.58,9.29503173]
[1736259136898,0.12549,213.68,213.56,1.5087]
[1736259137084,0.12549,213.68,213.57,9.29503173]
[1736259137284,0.12549,213.68,213.57,26.0]
[1736259137887,0.12549,213.68,213.57,35.29503173]
[1736259138309,0.12549,213.68,213.57,26.0]
[1736259139189,0.12549,213.68,213.56,10.80373173]
[1736259139390,0.12549,213.63,213.54,23.776884]
[1736259139605,0.12549,213.63,213.55,9.29503173]
[1736259139803,0.12549,213.63,213.54,33.07191573]
[1736259140008,0.12549,213.65,213.55,9.29503173]
[1736259140195,0.12549,213.65,213.56,9.29503173]
[1736259140784,0.12549,213.63,213.57,9.29503173]
[1736259141314,0.12549,213.63,213.54,23.776884]
[1736259141488,0.12549,213.63,213.55,9.29503173]
[1736259142011,0.12549,213.63,213.54,23.776884]
[1736259142216,0.12549,213.63,213.52,37.7084]
[1736259142387,0.12549,213.63,213.54,9.29503173]
[1736259143524,0.12549,213.63,213.55,9.29503173]
[1736259145618,0.12549,213.63,213.59,9.29503173]
[1736259147216,20.0,213.64,213.6,9.29503173]
[1736259150132,20.0,213.64,213.59,9.29503173]
[1736259151199,20.0,213.64,213.6,9.29503173]
[1736259153328,20.0,213.64,213.59,9.29503173]
[1736259155429,20.0,213.64,213.58,9.29503173]
[1736259156529,20.0,213.64,213.59,9.29503173]
[1736259159406,20.0,213.64,213.53,0.70215418]
[1736259159630,20.0,213.64,213.57,9.29503173]
[1736259159828,20.0,213.64,213.53,26.70215418]
[1736259160010,20.0,213.64,213.57,9.29503173]
[1736259161932,20.0,213.64,213.58,9.29503173]
[1736259162437,0.12549,213.63,213.58,9.29503173]
[1736259163034,0.12549,213.63,213.57,9.29503173]
[1736259163406,0.12549,213.63,213.58,9.29503173]
[1736259165419,20.0,213.64,213.59,9.29503173]
[1736259167757,20.0,213.64,213.54,24.47911177]
[1736259168044,0.12549,213.63,213.57,9.29503173]
[1736259177154,0.12549,213.63,213.53,23.776884]
[1736259177337,0.12549,213.63,213.56,9.29503173]
[1736259181261,0.12549,213.63,213.57,9.29503173]
[1736259182862,0.12549,213.63,213.59,9.29503173]
[1736259183340,0.12549,213.63,213.54,0.7022653]
[1736259183341,0.12549,213.63,213.55,23.776884]
[1736259183538,0.12549,213.63,213.57,9.29503173]
[1736259184157,0.12549,213.63,213.55,23.776884]
[1736259184358,0.12549,213.63,213.53,23.776884]
[1736259184538,0.12549,213.63,213.56,9.29503173]
[1736259185546,20.12549,213.63,213.52,0.70223206]
[1736259185754,20.12549,213.63,213.52,9.29503173]
[1736259185755,0.12549,213.63,213.52,9.29503173]
[1736259185947,1.96,213.65,213.46,7.26525817]
[1736259185948,0.12549,213.58,213.46,7.26525817]
[1736259186156,0.12549,213.56,213.47,9.29503173]
[1736259186338,0.12549,213.56,213.46,7.26525817]
[1736259186339,0.12549,213.51,213.46,7.26525817]
[1736259187051,0.12549,213.51,213.43,9.29503173]
[1736259187250,0.12549,213.51,213.44,9.29503173]
[1736259187454,2.08549,213.51,213.44,9.29503173]
[1736259187668,20.0,213.52,213.46,9.29503173]
[1736259187847,7.0862,213.55,213.48,9.29503173]
[1736259188054,1.96,213.54,213.48,9.29503173]
[1736259188352,0.12549,213.53,213.47,9.29503173]
[1736259189236,0.12549,213.54,213.46,9.29503173]
[1736259189441,2.08549,213.54,213.46,9.29503173]
[1736259189676,1.96,213.54,213.46,9.29503173]
[1736259190042,1.96,213.54,213.45,9.29503173]
[1736259190271,7.00840247,213.55,213.45,9.29503173]
[1736259190451,1.96,213.54,213.45,9.29503173]
[1736259190672,1.96,213.53,213.45,9.29503173]
[1736259190871,1.96,213.53,213.42,23.776884]
[1736259191070,1.96,213.53,213.45,9.29503173]
[1736259191964,0.12549,213.52,213.46,9.29503173]
[1736259192375,0.12549,213.52,213.47,9.29503173]
[1736259192871,0.12549,213.52,213.46,9.29503173]
[1736259193539,0.12549,213.54,213.46,9.29503173]
[1736259193739,0.12549,213.52,213.46,9.29503173]
[1736259193945,0.12549,213.52,213.47,9.29503173]
[1736259194569,0.12549,213.52,213.46,9.29503173]
[1736259195646,1.96,213.53,213.46,9.29503173]
[1736259195851,0.12549,213.52,213.47,9.29503173]
[1736259196052,0.12549,213.52,213.48,9.29503173]
[1736259196274,0.12549,213.53,213.48,9.29503173]
[1736259196574,20.0,213.52,213.48,9.29503173]
[1736259196754,0.12549,213.53,213.49,9.29503173]
[1736259197085,0.12549,213.54,213.49,9.29503173]
[1736259197375,0.12549,213.54,213.5,9.29503173]
[1736259198666,0.12549,213.54,213.49,9.29503173]
[1736259198971,0.12549,213.54,213.5,9.29503173]
[1736259199168,20.0,213.55,213.5,9.29503173]
[1736259199348,20.0,213.55,213.51,9.29503173]
[1736259199556,1.96,213.58,213.52,9.29503173]
[1736259200054,20.12549,213.57,213.52,9.29503173]
[1736259200977,20.12549,213.57,213.47,23.776884]
[1736259201281,20.12549,213.57,213.51,9.29503173]
[1736259204577,20.12549,213.57,213.47,49.776884]
[1736259204578,20.12549,213.57,213.52,9.29503173]
[1736259204959,2.4613,213.6,213.53,9.29503173]
[1736259205293,20.0,213.58,213.53,9.29503173]
[1736259207877,20.0,213.58,213.52,9.29503173]
[1736259209862,20.0,213.58,213.53,9.29503173]
[1736259210280,20.0,213.58,213.54,9.29503173]
[1736259211486,20.0,213.58,213.53,9.29503173]
[1736259213692,20.0,213.58,213.52,9.29503173]
[1736259215687,11.83089,213.58,213.46,140.1974]
[1736259215888,11.83089,213.58,213.5,9.29503173]
[1736259217968,11.83089,213.58,213.48,9.29503173]
[1736259218188,11.707,213.55,213.47,9.29503173]
[1736259218389,11.707,213.55,213.47,23.776884]
[1736259220374,11.707,213.55,213.47,33.07191573]
[1736259223275,11.707,213.55,213.48,9.29503173]
[1736259228815,11.7079,213.53,213.43,6.91482116]
[1736259229113,20.5013,213.56,213.48,9.29503173]
[1736259229295,20.0,213.54,213.49,9.29503173]
[1736259229617,20.0,213.54,213.46,23.776884]
[1736259229783,20.0,213.54,213.49,9.29503173]
[1736259231011,11.7085,213.52,213.46,9.29503173]
[1736259231175,11.7085,213.52,213.48,9.29503173]
[1736259231492,11.83249,213.55,213.48,9.29503173]
[1736259231986,11.83249,213.55,213.49,9.29503173]
[1736259232802,11.83249,213.55,213.44,0.70251994]
[1736259233102,11.83249,213.55,213.46,9.29503173]
[1736259234076,11.83249,213.55,213.43,23.776884]
[1736259234302,11.83249,213.55,213.45,9.29503173]
[1736259234501,13.79249,213.55,213.45,9.29503173]
[1736259234829,13.79249,213.55,213.46,9.29503173]
[1736259234995,13.79249,213.55,213.47,9.29503173]
[1736259235517,13.79249,213.55,213.46,9.29503173]
[1736259235704,13.79249,213.55,213.42,23.776884]
[1736259235903,13.79249,213.55,213.45,9.29503173]
[1736259236815,13.79249,213.55,213.46,9.29503173]
[1736259237001,13.667,213.55,213.48,9.29503173]
[1736259237207,13.667,213.55,213.49,9.29503173]
[1736259237421,0.12549,213.54,213.49,9.29503173]
[1736259237586,0.12549,213.54,213.48,9.29503173]
[1736259239412,11.707,213.55,213.5,9.29503173]
[1736259239617,20.0,213.56,213.5,9.29503173]
[1736259239826,20.0,213.55,213.5,9.29503173]
[1736259241332,20.0,213.55,213.51,23.776884]
[1736259241531,19.5110934,213.61,213.54,9.29503173]
[1736259241838,20.0,213.58,213.54,9.29503173]
[1736259242409,20.0,213.58,213.53,9.29503173]
[1736259242827,20.0,213.58,213.54,9.29503173]
[1736259246831,14.77310558,213.62,213.57,9.29503173]
[1736259247924,0.12549,213.61,213.55,9.29503173]
[1736259248119,0.12549,213.61,213.54,9.29503173]
[1736259248302,11.82909,213.61,213.5,6.6045]
[1736259248505,11.82909,213.61,213.54,9.29503173]
[1736259249837,11.82909,213.61,213.53,9.29503173]
[1736259252037,11.82909,213.61,213.54,9.29503173]
[1736259253836,11.82909,213.61,213.51,24.47918412]
[1736259254006,11.82909,213.61,213.54,9.29503173]
[1736259254736,11.82909,213.61,213.55,9.29503173]
[1736259256638,11.82909,213.61,213.54,9.29503173]
[1736259259239,11.82909,213.61,213.53,9.29503173]
[1736259260437,11.82909,213.61,213.54,9.29503173]
[1736259263943,11.82909,213.61,213.51,24.47918412]
[1736259264124,11.82909,213.61,213.54,9.29503173]
[1736259266253,11.82909,213.61,213.55,9.29503173]
[1736259266649,11.7036,213.61,213.55,9.29503173]
[1736259267024,11.7036,213.61,213.56,9.29503173]
[1736259268438,14.77310558,213.62,213.56,9.29503173]
[1736259275053,14.77310558,213.62,213.53,23.776884]
[1736259275236,14.77310558,213.62,213.55,9.29503173]
[1736259277640,20.0,213.59,213.55,9.29503173]
[1736259277848,20.0,213.59,213.53,9.29503173]
[1736259278042,19.5,213.59,213.53,9.29503173]
[1736259281851,19.5,213.59,213.51,23.776884]
[1736259282033,19.5,213.59,213.53,23.776884]
[1736259282241,19.5,213.59,213.5,6.6045]
[1736259282438,19.5,213.59,213.51,9.29503173]
[1736259282633,19.5,213.59,213.51,23.776884]
[1736259282875,11.83069,213.58,213.46,1.96]
[1736259283156,20.0,213.55,213.49,23.776884]
[1736259284661,20.0,213.55,213.44,32.4564]
[1736259284662,11.7066,213.56,213.44,32.4564]
[1736259284956,11.7066,213.56,213.47,147.52453173]
[1736259285162,11.7066,213.56,213.48,23.776884]
[1736259287576,11.7066,213.56,213.48,33.07191573]
[1736259287765,11.7066,213.56,213.48,23.776884]
[1736259288159,11.7066,213.56,213.48,33.07191573]
[1736259289868,11.7066,213.56,213.48,23.776884]
[1736259291566,11.7066,213.56,213.48,9.29503173]
[1736259292267,11.7066,213.56,213.48,23.776884]
[1736259296570,11.7066,213.56,213.48,9.29503173]
[1736259299576,0.12549,213.55,213.46,23.776884]
[1736259299780,0.12549,213.55,213.47,9.29503173]
[1736259299961,0.12549,213.55,213.48,9.29503173]
[1736259300375,11.7066,213.56,213.48,9.29503173]
[1736259300574,11.7046,213.6,213.53,9.29503173]
[1736259300771,0.5013,213.61,213.49,0.70242889]
[1736259300971,0.5013,213.61,213.55,9.29503173]
[1736259301275,20.0,213.59,213.53,9.29503173]
[1736259301477,20.0,213.59,213.54,33.07191573]
[1736259301670,11.704,213.61,213.55,9.29503173]
[1736259301870,11.704,213.61,213.56,9.29503173]
[1736259302066,14.77310558,213.62,213.58,9.29503173]
[1736259302979,14.77310558,213.62,213.59,9.29503173]
[1736259303175,14.77310558,213.62,213.6,9.29503173]
[1736259304490,14.77310558,213.62,213.59,9.29503173]
[1736259304775,14.77310558,213.62,213.58,9.29503173]
[1736259304981,14.77310558,213.62,213.57,9.29503173]
[1736259305983,14.77310558,213.62,213.56,33.07191573]
[1736259306169,14.77310558,213.62,213.56,23.776884]
[1736259306496,26.47610558,213.62,213.54,9.29503173]
[1736259307089,26.47610558,213.62,213.54,23.776884]
[1736259307378,0.12549,213.61,213.53,145.99503173]
[1736259308264,20.0,213.59,213.53,136.7]
[1736259308994,20.0,213.59,213.52,9.29503173]
[1736259309292,20.0,213.59,213.51,23.776884]
[1736259309474,20.0,213.59,213.51,33.07191573]
[1736259310706,0.12549,213.61,213.51,9.29503173]
[1736259310884,0.12549,213.58,213.5,9.29503173]
[1736259311066,20.12549,213.55,213.45,1.5255]
[1736259311263,20.12549,213.55,213.46,9.29503173]
[1736259312179,31.83259,213.55,213.46,9.29503173]
[1736259312563,31.83259,213.55,213.45,9.29503173]
[1736259313483,31.83259,213.55,213.44,9.29503173]
[1736259313688,0.12549,213.53,213.42,25.736884]
[1736259313869,0.12549,213.53,213.44,9.29503173]
[1736259317289,20.0,213.5,213.43,9.29503173]
[1736259317609,20.0,213.5,213.43,23.776884]
[1736259317814,20.0,213.5,213.42,23.776884]
[1736259319199,20.0,213.48,213.41,9.29503173]
[1736259319393,20.0,213.48,213.39,0.70264518]
[1736259319625,20.0,213.48,213.39,9.29503173]
[1736259320014,0.12549,213.47,213.39,9.29503173]
[1736259320313,0.12549,213.47,213.38,9.29503173]
[1736259320837,20.0,213.47,213.38,9.29503173]
[1736259320991,20.0,213.47,213.38,9.99779017]
[1736259321334,20.0,213.47,213.39,33.07191573]
[1736259321820,20.0,213.47,213.4,9.29503173]
[1736259323425,20.0,213.47,213.4,9.99777477]
[1736259323611,20.0,213.47,213.42,9.29503173]
[1736259324324,20.0,213.47,213.4,0.70274304]
[1736259324508,20.0,213.47,213.41,9.29503173]
[1736259325321,11.7091,213.51,213.43,9.29503173]
[1736259325617,20.0,213.48,213.43,9.29503173]
[1736259328102,20.0,213.48,213.42,33.77460923]
[1736259331419,20.0,213.48,213.42,23.776884]
[1736259332801,20.0,213.48,213.4,9.99765066]
[1736259333329,20.0,213.48,213.41,23.776884]
[1736259333537,20.0,213.48,213.41,33.07191573]
[1736259334809,20.0,213.48,213.43,9.29503173]
[1736259335006,20.0,213.48,213.43,23.776884]
[1736259338720,20.0,213.48,213.41,33.07191573]
[1736259339835,11.7091,213.51,213.44,33.07191573]
[1736259340255,11.7091,213.51,213.43,33.07191573]
[1736259345932,11.7091,213.51,213.43,23.776884]
[1736259348241,20.0,213.51,213.43,23.776884]
[1736259348807,20.0,213.51,213.44,0.70256644]
[1736259349012,20.0,213.51,213.45,9.29503173]
[1736259349239,11.7059,213.57,213.48,9.29503173]
[1736259349443,20.86315698,213.6,213.49,23.776884]
[1736259349628,20.0,213.57,213.49,23.776884]
[1736259350027,0.12549,213.59,213.49,23.776884]
[1736259350430,20.0,213.57,213.49,23.776884]
[1736259350738,20.0,213.57,213.49,33.07191573]
[1736259352764,20.0,213.57,213.5,9.29503173]
[1736259353054,20.0,213.57,213.49,33.07191573]
[1736259353262,20.0,213.57,213.5,9.29503173]
[1736259354366,20.0,213.57,213.51,23.776884]
[1736259354522,25.63245698,213.6,213.53,9.29503173]
[1736259354853,13.92825698,213.6,213.51,0.70237083]
[1736259355023,0.12549,213.59,213.5,23.776884]
[1736259355225,0.12549,213.59,213.49,2.33747986]
[1736259355527,0.12549,213.59,213.5,23.776884]
[1736259357465,20.0,213.57,213.5,23.776884]
[1736259362255,20.0,213.57,213.49,11.63251159]
[1736259362554,0.12549,213.59,213.48,11.25503173]
[1736259362555,20.0,213.56,213.48,11.25503173]
[1736259362741,20.0,213.56,213.49,23.776884]
[1736259362938,20.0,213.56,213.47,9.29503173]
[1736259363139,0.12549,213.56,213.45,147.95503173]
[1736259363348,0.12549,213.56,213.45,136.7]
[1736259363529,0.12549,213.56,213.43,12.86513173]
[1736259363727,0.12549,213.56,213.44,23.776884]
[1736259364459,20.0,213.52,213.44,23.776884]
[1736259364959,20.0,213.52,213.41,9.29503173]
[1736259365536,20.0,213.52,213.42,23.776884]
[1736259366459,20.0,213.52,213.42,33.07191573]
[1736259366663,20.0,213.52,213.42,24.47946935]
[1736259366866,20.0,213.52,213.42,23.776884]
[1736259369534,20.0,213.52,213.45,9.29503173]
[1736259369835,20.0,213.52,213.44,33.07191573]
[1736259370036,20.0,213.52,213.44,23.776884]
[1736259370662,20.0,213.52,213.44,33.07191573]
[1736259370965,20.0,213.52,213.44,33.77443467]
[1736259371833,20.0,213.52,213.44,33.07191573]
[1736259372646,20.0,213.52,213.44,59.07191573]
[1736259372843,20.0,213.52,213.44,49.776884]
[1736259373551,20.0,213.52,213.44,23.776884]
[1736259374768,20.0,213.52,213.42,9.99758216]
[1736259375167,20.0,213.52,213.44,23.776884]
[1736259377162,20.0,213.5,213.42,0.70255043]
[1736259377666,20.0,213.5,213.42,23.776884]
[1736259383575,20.0,213.5,213.41,0.7026156]
[1736259384154,0.12549,213.49,213.39,136.7]
[1736259384367,0.12549,213.49,213.38,1.6149]
[1736259384677,0.12549,213.49,213.37,0.70274603]
[1736259385275,0.12549,213.49,213.38,23.776884]
[1736259385467,20.0,213.46,213.38,23.776884]
[1736259387363,20.0,213.46,213.38,33.07191573]
[1736259387775,20.0,213.46,213.4,23.776884]
[1736259389982,20.0,213.46,213.39,23.776884]
[1736259392493,20.0,213.46,213.38,23.776884]
[1736259393395,20.0,213.46,213.36,9.99775871]
[1736259394195,20.0,213.46,213.33,1.558]
[1736259394196,0.12549,213.46,213.33,1.558]
[1736259394373,0.12549,213.46,213.32,0.70290727]
[1736259394585,0.12549,213.46,213.33,23.776884]
[1736259394891,0.12549,213.44,213.33,23.776884]
[1736259395488,20.0,213.41,213.33,23.776884]
[1736259396391,20.0,213.4,213.33,23.776884]
[1736259398898,20.0,213.4,213.35,23.776884]
[1736259399199,6.1518,213.43,213.35,33.07191573]
[1736259399572,20.0,213.44,213.37,33.07191573]
[1736259399990,11.7113,213.47,213.39,33.07191573]
[1736259400180,6.4052,213.48,213.39,33.07191573]
[1736259400699,20.0,213.45,213.39,23.776884]
[1736259403578,20.0,213.45,213.39,33.07191573]
[1736259403774,20.0,213.48,213.41,33.07191573]
[1736259404779,0.5013,213.5,213.43,23.776884]
[1736259405906,0.5013,213.5,213.41,9.29503173]
[1736259406100,0.5013,213.5,213.4,33.07191573]
[1736259408508,0.5013,213.5,213.4,23.776884]
[1736259410505,0.5013,213.5,213.4,33.07191573]
[1736259410690,0.5013,213.5,213.4,33.77454917]
[1736259411507,20.0,213.48,213.37,0.7026515]
[1736259411832,20.0,213.46,213.36,138.326]
[1736259411984,20.0,213.46,213.37,0.70274146]
[1736259412378,20.0,213.46,213.38,23.776884]
[1736259417407,20.0,213.46,213.4,23.776884]
[1736259420823,20.0,213.46,213.38,9.29503173]
[1736259422921,20.0,213.46,213.37,24.47961247]
[1736259423093,20.0,213.46,213.37,33.7746442]
[1736259423298,20.0,213.46,213.37,23.776884]
[1736259423928,11.7119,213.46,213.35,0.70274178]
[1736259424101,20.0,213.43,213.34,145.99503173]
[1736259424300,20.0,213.43,213.35,23.776884]
[1736259425232,20.0,213.43,213.32,9.29503173]
[1736259425433,20.0,213.43,213.32,9.99794287]
[1736259425916,20.0,213.43,213.33,23.776884]
[1736259426721,20.0,213.43,213.33,33.07191573]
[1736259427231,20.0,213.43,213.33,23.776884]
[1736259427726,20.0,213.43,213.33,33.07191573]
[1736259428234,20.0,213.43,213.33,23.776884]
[1736259430124,20.0,213.43,213.33,33.07191573]
[1736259430319,20.0,213.43,213.34,9.29503173]
[1736259431531,20.0,213.43,213.38,26.0]
[1736259432502,20.0,213.43,213.39,23.776884]
[1736259432926,18.2675,213.46,213.39,9.29503173]
[1736259433116,18.2675,213.46,213.39,23.776884]
[1736259433715,6.5556,213.46,213.39,9.29503173]
[1736259434008,20.0,213.47,213.41,9.29503173]
[1736259434251,12.2114,213.5,213.41,9.29503173]
[1736259434538,0.12549,213.49,213.41,9.29503173]
[1736259434710,12.2114,213.5,213.41,9.29503173]
[1736259434906,12.2114,213.5,213.42,23.776884]
[1736259435111,0.12549,213.49,213.42,23.776884]
[1736259435736,0.12549,213.49,213.45,26.0]
[1736259439458,0.12549,213.49,213.4,9.29503173]
[1736259439621,0.12549,213.49,213.4,33.07191573]
[1736259440520,0.12549,213.49,213.41,33.07191573]
[1736259440725,0.12549,213.49,213.41,23.776884]
[1736259440927,20.0,213.51,213.44,23.776884]
[1736259441324,20.0,213.51,213.43,23.776884]
[1736259442128,20.0,213.51,213.41,23.776884]
[1736259442326,0.12549,213.5,213.41,23.776884]
[1736259442630,0.12549,213.5,213.44,26.0]
[1736259443037,20.0,213.52,213.44,26.0]
[1736259443038,0.12549,213.48,213.44,26.0]
[1736259446154,0.12549,213.48,213.38,23.776884]
[1736259446341,0.12549,213.48,213.38,33.07191573]
[1736259446643,0.12549,213.48,213.38,23.776884]
[1736259446644,20.0,213.46,213.38,23.776884]
[1736259446950,20.0,213.46,213.38,33.07191573]
[1736259447247,20.0,213.46,213.4,23.776884]
[1736259448950,20.0,213.46,213.44,26.0]
[1736259449451,20.0,213.46,213.4,33.07191573]
[1736259450829,11.7086,213.52,213.4,33.07191573]
[1736259451035,11.7086,213.52,213.42,33.07191573]
[1736259451535,20.0,213.51,213.42,33.07191573]
[1736259451742,20.0,213.51,213.44,23.776884]
[1736259452451,20.0,213.49,213.47,26.0]
[1736259452829,11.7086,213.52,213.47,26.0]
[1736259460143,11.7086,213.52,213.48,23.776884]
[1736259460346,11.7086,213.52,213.44,23.776884]
[1736259462886,11.7086,213.52,213.4,11.56110296]
[1736259463070,11.7086,213.52,213.48,26.0]
[1736259463259,0.12549,213.51,213.48,26.0]
[1736259463469,0.12549,213.49,213.4,1.5635]
[1736259463663,20.0,213.47,213.4,1.5635]
[1736259463853,20.0,213.47,213.41,23.776884]
[1736259465466,20.0,213.47,213.37,0.7027361]
[1736259465871,20.0,213.47,213.38,23.776884]
[1736259466384,20.0,213.47,213.42,23.776884]
[1736259466876,20.0,213.47,213.38,23.776884]
[1736259467078,0.12549,213.49,213.38,23.776884]
[1736259467268,20.0,213.45,213.36,0.70278493]
[1736259467468,20.0,213.45,213.35,11.58982091]
[1736259467873,20.0,213.45,213.36,23.776884]
[1736259469272,0.12549,213.45,213.36,23.776884]
[1736259469470,20.0,213.43,213.36,23.776884]
[1736259469871,20.0,213.43,213.4,26.0]
[1736259470387,0.12549,213.45,213.4,26.0]
[1736259472163,20.0,213.43,213.4,26.0]
[1736259473165,20.0,213.43,213.36,23.776884]
[1736259476302,20.0,213.43,213.38,26.0]
[1736259476993,20.0,213.43,213.36,23.776884]
[1736259477383,11.7135,213.43,213.36,23.776884]
[1736259477570,11.7135,213.43,213.36,33.07191573]
[1736259480199,11.7135,213.43,213.4,26.0]
[1736259481195,20.0,213.41,213.4,26.0]
[1736259482398,20.12549,213.41,213.36,23.776884]
[1736259482605,20.0,213.4,213.36,23.776884]
[1736259488007,0.12549,213.46,213.31,2.02]
[1736259488206,0.12549,213.41,213.32,9.29503173]
[1736259488508,0.12549,213.41,213.33,23.776884]
[1736259489297,11.84039,213.41,213.33,23.776884]
[1736259489511,11.84039,213.41,213.33,49.776884]
[1736259492690,11.84039,213.41,213.33,23.776884]
[1736259492907,20.0,213.38,213.31,23.776884]
[1736259493211,15.11,213.38,213.31,23.776884]
[1736259494515,15.11,213.38,213.31,9.29503173]
[1736259495408,15.11,213.38,213.31,10.91423173]
[1736259495614,6.2155,213.43,213.35,23.776884]
[1736259496119,20.0,213.4,213.35,23.776884]
[1736259496799,0.12549,213.39,213.31,1.6192]
[1736259497001,0.12549,213.39,213.33,9.29503173]
[1736259497307,20.0,213.4,213.34,23.776884]
[1736259497506,20.0,213.4,213.34,9.29503173]
[1736259498215,20.0,213.41,213.37,23.776884]
[1736259500613,20.0,213.45,213.36,26.0]
[1736259500814,0.12549,213.42,213.34,9.29503173]
[1736259502416,0.12549,213.44,213.34,9.29503173]
[1736259502601,0.12549,213.42,213.34,9.29503173]
[1736259503593,0.12549,213.42,213.36,23.776884]
[1736259503793,0.12549,213.42,213.36,49.776884]
[1736259504913,11.7138,213.43,213.36,49.776884]
[1736259507718,0.12549,213.42,213.36,49.776884]
[1736259507903,11.7145,213.41,213.32,9.29503173]
[1736259508219,11.7145,213.41,213.33,23.776884]
[1736259508424,11.7145,213.41,213.32,33.07191573]
[1736259508820,11.7145,213.41,213.32,23.776884]
[1736259509023,11.7145,213.41,213.35,23.776884]
[1736259513601,11.7145,213.41,213.33,9.29503173]
[1736259514328,11.7145,213.41,213.34,23.776884]
[1736259519945,20.0,213.41,213.34,9.29503173]
[1736259522646,20.0,213.41,213.36,23.776884]
[1736259524053,20.0,213.41,213.31,10.91423173]
[1736259524338,20.0,213.41,213.32,9.29503173]
[1736259524520,20.0,213.41,213.33,23.776884]
[1736259525428,20.0,213.41,213.33,9.29503173]
[1736259526921,20.0,213.41,213.34,23.776884]
[1736259534349,20.0,213.41,213.33,23.776884]
[1736259537353,20.0,213.41,213.33,49.776884]
[1736259540750,20.0,213.39,213.33,49.776884]
[1736259543851,20.0,213.39,213.32,23.776884]
[1736259546252,20.12549,213.41,213.29,2.0]
[1736259546453,26.58499,213.41,213.29,9.29503173]
[1736259546659,26.58499,213.41,213.3,23.776884]
[1736259547039,27.08629,213.41,213.3,23.776884]
[1736259547245,27.08629,213.41,213.26,1.6605]
[1736259547558,27.08629,213.41,213.27,23.776884]
[1736259548279,27.08629,213.41,213.26,10.95553173]
[1736259548280,0.12549,213.36,213.21,145.62705817]
[1736259548453,0.12549,213.36,213.22,0.70323026]
[1736259548651,0.12549,213.36,213.26,23.776884]
[1736259549269,0.12549,213.34,213.26,23.776884]
[1736259550374,0.12549,213.34,213.27,23.776884]
[1736259554875,36.561142,213.34,213.27,23.776884]
[1736259556385,36.561142,213.34,213.22,23.776884]
[1736259556549,36.561142,213.34,213.25,9.29503173]
[1736259556873,37.062442,213.34,213.25,9.29503173]
[1736259557071,37.062442,213.34,213.22,24.48013905]
[1736259557271,0.12549,213.32,213.22,23.776884]
[1736259557466,0.12549,213.32,213.21,1.6618]
[1736259557467,0.12549,213.32,213.24,23.776884]
[1736259557662,0.12549,213.32,213.24,33.07191573]
[1736259557866,0.12549,213.32,213.26,23.776884]
[1736259558672,0.12549,213.32,213.26,9.29503173]
[1736259558979,0.12549,213.32,213.26,23.776884]
[1736259560579,0.12549,213.32,213.24,9.29503173]
[1736259563180,0.12549,213.32,213.22,23.776884]
[1736259563569,0.12549,213.32,213.23,9.29503173]
[1736259563883,0.12549,213.32,213.24,9.29503173]
[1736259564270,0.12549,213.32,213.23,9.29503173]
[1736259564271,20.0,213.3,213.23,9.29503173]
[1736259564476,20.0,213.3,213.22,9.29503173]
[1736259564778,0.12549,213.29,213.2,1.98]
[1736259564980,11.84699,213.29,213.21,9.29503173]